bitfinex/quotes_BTCUSD_20240729
["timestamp","ask_amount","ask_price","bid_price","bid_amount"]
[1722273733929,0.00018645,66984.0,66980.0,0.07154355]
[1722273734271,0.00756773,66983.0,66980.0,0.07154355]
[1722273734670,0.00018645,66985.0,66980.0,0.07154355]
[1722273734868,0.00756398,66984.0,66980.0,0.07154355]
[1722273735129,0.00018645,66985.0,66980.0,0.07154355]
[1722273735462,0.00756278,66983.0,66980.0,0.07154355]
[1722273735651,0.00756398,66984.0,66980.0,0.07154355]
[1722273735788,0.00759183,66982.0,66980.0,0.07154355]
[1722273735989,0.02342223,66984.0,66980.0,0.07154355]
[1722273736416,0.00759349,66983.0,66980.0,0.07154355]
[1722273737101,0.02342223,66984.0,66980.0,0.07154355]
[1722273737445,0.02342223,66984.0,66983.0,1.11057055]
[1722273737678,0.04983984,66994.0,66993.0,1.114205]
[1722273738009,0.05743313,66994.0,66993.0,1.66604439]
[1722273738212,0.00018645,67010.0,66999.0,0.05]
[1722273738419,0.04970336,67007.0,67001.0,0.07154355]
[1722273738803,0.00084,67013.0,67002.0,0.02986]
[1722273738935,0.00084,67013.0,67008.0,0.15140355]
[1722273739131,0.00084,67013.0,67008.0,0.1915557]
[1722273739352,0.00084,67013.0,67008.0,0.15140355]
[1722273739575,0.00018645,67012.0,67008.0,0.02986]
[1722273739985,0.00018645,67012.0,67009.0,0.02986]
[1722273740137,0.00084,67013.0,67011.0,0.02986]
[1722273740842,0.02996008,67012.0,67011.0,0.02986]
[1722273741381,0.02996008,67012.0,67011.0,0.15686]
[1722273741577,0.02996008,67012.0,67011.0,0.02986]
[1722273741805,0.02996008,67012.0,67008.0,0.006]
[1722273741806,0.02341123,67012.0,67008.0,0.006]
[1722273742008,0.00018645,67011.0,67008.0,0.006]
[1722273742479,0.00656637,67010.0,67008.0,0.03586]
[1722273742712,0.00656637,67010.0,67009.0,0.10438802]
[1722273742912,0.02341123,67012.0,67009.0,0.11542682]
[1722273743176,0.02341123,67012.0,67011.0,0.03786]
[1722273743407,0.02341123,67012.0,67011.0,0.02986]
[1722273744165,0.02341123,67012.0,67009.0,0.02986]
[1722273745128,0.00018645,67010.0,67009.0,0.02986]
[1722273746343,0.00018645,67009.0,67008.0,0.007]
[1722273746595,0.00018645,67009.0,67008.0,0.006]
[1722273746596,0.19143905,67009.0,67008.0,0.006]
[1722273746824,0.15184628,67009.0,67008.0,0.006]
[1722273747285,0.15029208,67009.0,67008.0,0.006]
[1722273747543,0.15114889,67009.0,67008.0,0.006]
[1722273747824,0.15029208,67009.0,67008.0,0.006]
[1722273748284,0.15029208,67009.0,66998.0,0.02986]
[1722273748285,0.00018645,67004.0,66998.0,0.02986]
[1722273748545,0.14309939,67004.0,66998.0,0.02986]
[1722273748794,0.00018645,67001.0,66998.0,0.05475035]
[1722273749017,0.00712249,67003.0,66998.0,0.05475035]
[1722273749243,0.00018645,67008.0,66998.0,0.02986]
[1722273749488,0.00018645,67008.0,67004.0,0.02986]
[1722273749731,0.08193,67010.0,67004.0,0.02986]
[1722273749732,0.00715467,67007.0,67004.0,0.03284455]
[1722273749945,0.00018645,67008.0,67004.0,0.03284455]
[1722273750222,0.00715011,67006.0,67004.0,0.02986]
[1722273750461,0.00018645,67009.0,67004.0,0.02986]
[1722273750683,0.00716249,67005.0,67004.0,0.02986]
[1722273750914,0.00018645,67009.0,67004.0,0.02986]
[1722273751142,0.00018645,67009.0,67000.0,0.2123]
[1722273751143,0.00734894,67008.0,67001.0,0.02986]
[1722273751623,0.02341243,67007.0,67001.0,0.02986]
[1722273751853,0.02341243,67007.0,67000.0,0.2123]
[1722273751854,0.02341243,67007.0,67006.0,0.24216]
[1722273752573,0.16349888,67007.0,67006.0,0.02986]
[1722273752791,0.00018645,66993.0,66992.0,0.02986]
[1722273752991,0.14008645,66992.0,66991.0,0.02986]
[1722273753163,0.0015542,66985.0,66984.0,0.000913]
[1722273753667,0.00018645,66985.0,66984.0,0.000913]
[1722273755013,0.14328584,66985.0,66984.0,0.000913]
[1722273755291,0.48619914,66985.0,66984.0,0.000913]
[1722273755511,0.77958614,66985.0,66984.0,0.000913]
[1722273755642,1.07816014,66985.0,66984.0,0.000913]
[1722273755848,1.13664395,66985.0,66984.0,0.000913]
[1722273756051,0.8614927,66985.0,66984.0,0.000913]
[1722273756712,1.4586407,66985.0,66984.0,0.000913]
[1722273756915,1.54599023,66985.0,66984.0,0.003913]
[1722273757090,0.89884223,66985.0,66984.0,0.003913]
[1722273757296,1.1600667,66985.0,66984.0,0.003913]
[1722273757608,0.49515665,66985.0,66984.0,0.000913]
[1722273757819,0.34586965,66985.0,66984.0,0.000913]
[1722273758036,0.28738584,66985.0,66984.0,0.000913]
[1722273758621,0.34593957,66985.0,66984.0,0.000913]
[1722273758829,0.28738584,66985.0,66984.0,0.000913]
[1722273759024,0.34796299,66985.0,66984.0,0.000913]
[1722273759250,0.28938584,66985.0,66984.0,0.000913]
[1722273759449,0.35696416,66985.0,66984.0,0.000913]
[1722273759661,1.19991268,66985.0,66984.0,0.000913]
[1722273760024,1.22333605,66985.0,66984.0,0.000913]
[1722273760224,1.26221276,66985.0,66984.0,0.000913]
[1722273760431,1.262264,66985.0,66984.0,0.000913]
[1722273760649,1.22333605,66985.0,66984.0,0.000913]
[1722273760885,1.26187909,66985.0,66984.0,0.000913]
[1722273761403,0.92476205,66985.0,66984.0,0.000913]
[1722273761999,1.60869234,66985.0,66984.0,0.000913]
[1722273762172,1.60869234,66985.0,66967.0,0.02986]
[1722273762173,0.00018645,66968.0,66967.0,0.02986]
[1722273762379,0.00018645,66960.0,66959.0,0.02986]
[1722273762546,0.22579939,66968.0,66946.0,0.0814]
[1722273762547,0.00018645,66956.0,66946.0,0.1437]
[1722273763363,1.2739,66965.0,66951.0,0.02994]
[1722273763364,0.00018645,66958.0,66951.0,0.02994]
[1722273763561,0.00018645,66959.0,66957.0,0.10148355]
[1722273763791,0.00018645,66962.0,66957.0,0.07154355]
[1722273763965,0.00735678,66958.0,66957.0,0.07154355]
[1722273764219,0.00018645,66962.0,66957.0,0.07154355]
[1722273764591,1.32331205,66965.0,66958.0,0.05702996]
[1722273764592,0.007133,66961.0,66958.0,0.05702996]
[1722273764771,0.007133,66961.0,66960.0,0.02994]
[1722273764913,1.32331205,66965.0,66960.0,0.02994]
[1722273765102,1.2739,66965.0,66964.0,0.10148355]
[1722273765298,0.00018645,66968.0,66964.0,0.10148355]
[1722273766142,0.00898492,66973.0,66964.0,0.10148355]
[1722273766143,0.00018645,66973.0,66964.0,0.10148355]
[1722273766297,0.00018645,66971.0,66964.0,0.10148355]
[1722273767204,0.02342609,66968.0,66964.0,0.10148355]
[1722273767408,0.02342609,66968.0,66964.0,0.10348355]
[1722273767602,0.02342609,66968.0,66965.0,0.00298632]
[1722273767809,0.02342609,66968.0,66966.0,0.02994]
[1722273768054,0.02342609,66968.0,66967.0,0.02994]
[1722273770583,0.02342609,66968.0,66967.0,0.03894]
[1722273770902,0.02442609,66968.0,66967.0,0.03894]
[1722273771069,0.02442609,66968.0,66967.0,0.188267]
[1722273771270,0.02442609,66968.0,66967.0,0.536921]
[1722273771523,0.02442609,66968.0,66967.0,0.898375]
[1722273771751,0.02442609,66968.0,66967.0,1.47574255]
[1722273771866,0.02442609,66968.0,66967.0,1.61884194]
[1722273772231,0.001,66968.0,66967.0,1.61884194]
[1722273772445,0.001,66968.0,66967.0,1.63284194]
[1722273772788,0.001,66968.0,66967.0,1.65584194]
[1722273773655,0.001,66968.0,66967.0,1.65384194]
[1722273773855,0.001,66968.0,66967.0,1.65584194]
[1722273774058,0.00018645,66986.0,66975.0,0.199309]
[1722273774293,0.00018645,66986.0,66980.0,0.07154355]
[1722273774517,0.00674578,66985.0,66974.0,0.32856]
[1722273774689,0.00674578,66985.0,66976.0,0.149307]
[1722273774893,0.00018645,66985.0,66976.0,0.149307]
[1722273775066,0.00018645,66985.0,66975.0,0.05]
[1722273775273,0.00018645,66985.0,66975.0,0.15]
[1722273775584,0.00018645,66988.0,66979.0,0.149299]
[1722273775773,0.02342018,66985.0,66981.0,0.07154355]
[1722273776234,0.02342018,66985.0,66984.0,0.92619855]
[1722273776455,0.02342018,66985.0,66984.0,1.06948439]
[1722273776655,0.00018645,66998.0,66989.0,0.179218]
[1722273776866,0.00018645,66999.0,66991.0,0.02994]
[1722273777264,0.08945418,67004.0,66991.0,0.02994]
[1722273777265,0.00018645,66998.0,66991.0,0.02994]
[1722273777937,0.08945418,67004.0,66982.0,0.1118]
[1722273777938,0.00018645,66992.0,66985.0,0.02994]
[1722273778174,0.00018645,66997.0,66992.0,0.02994]
[1722273778343,0.00018645,67000.0,66992.0,0.02994]
[1722273778542,0.00018645,66998.0,66992.0,0.02994]
[1722273778744,0.14328584,66999.0,66992.0,0.02994]
[1722273778960,0.00018645,66995.0,66992.0,0.02994]
[1722273779103,0.00018645,66993.0,66992.0,0.02994]
[1722273779705,0.02360262,66993.0,66992.0,0.02994]
[1722273780541,0.02360262,66993.0,66992.0,0.03594]
[1722273781158,0.02360262,66993.0,66990.0,0.02994]
[1722273781159,0.02341617,66993.0,66990.0,0.02994]
[1722273781331,0.02341617,66993.0,66988.0,0.07154355]
[1722273781332,0.02341617,66993.0,66992.0,0.02994]
[1722273781524,0.02360262,66993.0,66992.0,0.02994]
[1722273783357,0.02360262,66993.0,66992.0,0.03994]
[1722273783562,0.02360262,66993.0,66992.0,0.03894]
[1722273783881,0.00018645,66994.0,66992.0,0.03894]
[1722273784080,0.00018645,66994.0,66993.0,0.02994]
[1722273784386,0.00018645,66995.0,66993.0,0.02994]
[1722273784703,0.08945418,67004.0,66995.0,0.02994]
[1722273784704,0.00018645,66999.0,66995.0,0.02994]
[1722273784883,0.00018645,67002.0,66997.0,0.149259]
[1722273785083,0.00018645,67002.0,66996.0,0.10148355]
[1722273785084,0.0807,67004.0,66998.0,0.02994]
[1722273785313,0.00018645,67001.0,66998.0,0.02994]
[1722273785472,0.00018645,66999.0,66998.0,0.02994]
[1722273785676,0.00018645,67001.0,66998.0,0.02994]
[1722273785959,0.00018645,67002.0,66998.0,0.02994]
[1722273786113,0.05000745,67005.0,66999.0,0.02994]
[1722273786452,0.05000745,67005.0,67001.0,0.02994]
[1722273786453,0.049821,67005.0,67001.0,0.02994]
[1722273786584,0.00018645,67008.0,67005.0,0.02994]
[1722273787237,0.02359921,67008.0,67005.0,0.02994]
[1722273787443,0.00018645,67008.0,67005.0,0.02994]
[1722273787645,0.00018645,67008.0,67002.0,0.02994]
[1722273787844,0.00018645,67008.0,67006.0,0.02994]
[1722273788026,0.00018645,67007.0,67006.0,0.02994]
[1722273789382,0.00018645,67007.0,67006.0,0.03694]
[1722273790328,0.02359763,67007.0,67006.0,0.03694]
[1722273790642,0.02359763,67007.0,67006.0,0.04294]
[1722273791057,0.02359763,67007.0,67006.0,0.03694]
[1722273791499,0.02359763,67007.0,67006.0,0.04594]
[1722273792096,0.02359763,67007.0,67006.0,0.03694]
[1722273792294,0.30809702,67007.0,67006.0,0.04594]
[1722273792545,1.17096141,67007.0,67006.0,0.016]
[1722273792747,1.91791341,67007.0,67006.0,0.016]
[1722273792911,0.29085345,66994.0,66993.0,0.25]
[1722273793075,0.28468584,66994.0,66993.0,0.25]
[1722273793910,0.14158645,66994.0,66993.0,0.25]
[1722273795565,0.28568584,66994.0,66993.0,0.25]
[1722273796310,0.35903262,66994.0,66993.0,0.25]
[1722273796509,0.28568584,66994.0,66993.0,0.25]
[1722273798043,0.001,66994.0,66993.0,0.25]
[1722273798486,0.001,66994.0,66993.0,0.48219375]
[1722273798659,0.001,66994.0,66993.0,0.9805453]
[1722273798809,0.00018645,67008.0,66998.0,0.02994]
[1722273799189,0.00018645,67001.0,66998.0,0.02994]
[1722273799896,0.00018645,67001.0,66999.0,0.02994]
[1722273800721,0.01497358,67008.0,66999.0,0.02994]
[1722273800722,0.00018645,67005.0,66999.0,0.02994]
[1722273800928,0.00018645,67009.0,67003.0,0.02994]
[1722273801143,0.00018645,67009.0,67004.0,0.00298452]
[1722273801371,0.00083,67010.0,67004.0,0.00298452]
[1722273801372,0.00083,67010.0,67009.0,0.528]
[1722273801616,0.00083,67010.0,67009.0,1.02239649]
[1722273801845,0.00083,67010.0,67009.0,0.73558448]
[1722273802111,0.00083,67010.0,67009.0,0.28178355]
[1722273802313,0.00083,67010.0,67009.0,0.20148355]
[1722273805308,0.0252386,67010.0,67009.0,0.22248355]
[1722273806020,0.0242386,67010.0,67009.0,0.21448355]
[1722273806398,0.0252386,67010.0,67009.0,0.22748355]
[1722273806752,0.0252386,67010.0,67009.0,0.72518355]
[1722273806956,0.0252386,67010.0,67009.0,0.22748355]
[1722273807153,0.0252386,67010.0,67009.0,0.37671655]
[1722273807359,0.0252386,67010.0,67009.0,0.22748355]
[1722273807554,0.0252386,67010.0,67009.0,0.37671655]
[1722273807760,0.0252386,67010.0,67009.0,0.22748355]
[1722273808840,0.0242386,67010.0,67009.0,0.21448355]
[1722273809223,0.0242386,67010.0,67009.0,0.36371655]
[1722273810280,0.0242386,67010.0,67009.0,0.20148355]
[1722273810508,0.0242386,67010.0,67009.0,0.21148355]
[1722273810509,0.0252386,67010.0,67009.0,0.21148355]
[1722273810689,0.0252386,67010.0,67009.0,0.22548355]
[1722273810906,0.02508479,67010.0,67009.0,0.21148355]
[1722273811052,0.02508479,67010.0,67009.0,0.36071655]
[1722273811253,0.02508479,67010.0,67009.0,0.37371655]
[1722273811640,0.02508479,67010.0,67009.0,0.22448355]
[1722273812119,0.02508479,67010.0,67009.0,0.37371655]
[1722273812257,0.00084,67013.0,67012.0,0.05]
[1722273812459,0.07758645,67034.0,67022.0,0.17975355]
[1722273812773,0.00841,67044.0,67028.0,0.229131]
[1722273812774,0.00859645,67040.0,67028.0,0.229131]
[1722273812974,0.00841,67040.0,67028.0,1.25572108]
[1722273813181,0.00859645,67040.0,67028.0,1.25572108]
[1722273813381,0.00859645,67040.0,67028.0,1.45553463]
[1722273813544,0.00841,67040.0,67028.0,1.35572108]
[1722273813745,0.00859645,67040.0,67028.0,1.41872108]
[1722273813984,0.00859645,67040.0,67028.0,0.81897394]
[1722273814199,0.00018645,67038.0,67028.0,0.40514]
[1722273814393,0.00018645,67038.0,67028.0,0.852713]
[1722273814584,0.00018645,67037.0,67028.0,0.40514]
[1722273814823,0.00018645,67037.0,67028.0,0.554331]
[1722273815031,0.00018645,67037.0,67028.0,0.852713]
[1722273815785,0.00018645,67037.0,67028.0,0.554331]
[1722273816328,0.00018645,67037.0,67028.0,0.852713]
[1722273816482,0.00018645,67037.0,67028.0,1.151095]
[1722273816823,0.00018645,67037.0,67028.0,0.554331]
[1722273817066,0.00841,67040.0,67028.0,1.16003425]
[1722273817417,0.00018645,67037.0,67028.0,0.86165225]
[1722273817624,0.00018645,67037.0,67028.0,0.56327025]
[1722273817971,0.00018645,67037.0,67028.0,0.41407925]
[1722273818264,0.00018645,67037.0,67028.0,0.56327025]
[1722273818705,0.00018645,67037.0,67028.0,0.86165225]
[1722273818906,0.00018645,67037.0,67028.0,1.16003425]
[1722273819137,0.0318123,67029.0,67028.0,1.16003425]
[1722273819389,0.0318123,67029.0,67028.0,1.35313364]
[1722273819616,0.0318123,67029.0,67028.0,1.37613364]
[1722273820736,0.00841,67029.0,67028.0,1.37613364]
[1722273820954,0.00841,67029.0,67028.0,1.39013364]
[1722273821488,0.00841,67029.0,67028.0,0.51427025]
[1722273821765,0.00841,67029.0,67028.0,0.15287925]
[1722273822021,0.00859645,67029.0,67028.0,0.05594]
[1722273822262,0.00841,67029.0,67028.0,0.04394]
[1722273823221,0.00841,67029.0,67028.0,0.05794]
[1722273824189,0.03181422,67029.0,67028.0,0.04394]
[1722273824651,0.03181422,67029.0,67028.0,0.04594]
[1722273825182,0.03181422,67029.0,67028.0,0.04394]
[1722273825405,0.03181422,67029.0,67028.0,0.41707935]
[1722273825710,0.03181422,67029.0,67028.0,1.00856074]
[1722273825937,0.03181422,67029.0,67028.0,1.31294274]
[1722273826409,0.00841,67029.0,67028.0,1.31294274]
[1722273826658,0.00841,67029.0,67028.0,0.96456074]
[1722273826925,0.00841,67029.0,67028.0,0.71617874]
[1722273827605,0.00841,67029.0,67028.0,1.01456074]
[1722273828029,0.00841,67029.0,67028.0,0.98462074]
[1722273828237,0.00841,67029.0,67028.0,1.29894274]
[1722273828567,0.00841,67029.0,67028.0,1.62532474]
[1722273828807,0.00841,67029.0,67028.0,1.77072474]
[1722273829012,0.00841,67029.0,67028.0,1.76572474]
[1722273829197,0.00841,67029.0,67028.0,1.98173755]
[1722273829405,0.00841,67040.0,67039.0,0.825772]
[1722273829599,0.00841,67040.0,67039.0,0.99756648]
[1722273830456,0.00841,67040.0,67039.0,0.14476809]
[1722273830672,0.09109645,67040.0,67039.0,0.04476809]
[1722273831236,0.09109645,67040.0,67039.0,0.25696809]
[1722273831237,0.00841,67040.0,67039.0,0.25696809]
[1722273831444,0.00841,67040.0,67039.0,0.39795316]
[1722273831643,0.00841,67059.0,67039.0,0.46949671]
[1722273831853,0.298255,67057.0,67051.0,0.02994]
[1722273832054,0.149136,67053.0,67051.0,0.02994]
[1722273832259,0.149146,67049.0,67047.0,0.01482809]
[1722273832613,0.149146,67049.0,67043.0,0.02994]
[1722273832614,0.0015542,67048.0,67043.0,0.02994]
[1722273832820,0.14309939,67047.0,67043.0,0.02994]
[1722273833144,0.149155,67044.0,67043.0,0.02994]
[1722273833319,0.14309939,67044.0,67043.0,0.02994]
[1722273833531,0.29225439,67044.0,67043.0,0.02994]
[1722273833686,0.64962113,67044.0,67043.0,0.02994]
[1722273833902,0.149163,67041.0,67033.0,0.02994]
[1722273834272,0.0015542,67040.0,67033.0,0.02994]
[1722273834856,0.1461,67039.0,67032.0,0.02994]
[1722273835118,0.1461,67039.0,67038.0,0.10148355]
[1722273835119,0.0822,67039.0,67038.0,0.10148355]
[1722273835481,0.1434,67039.0,67038.0,0.10148355]
[1722273836731,0.0822,67039.0,67038.0,0.10148355]
[1722273837540,0.1203214,67039.0,67038.0,0.02994]
[1722273837686,0.1056014,67039.0,67038.0,0.02994]
[1722273837888,0.0822,67039.0,67038.0,0.02994]
[1722273838271,0.0822,67039.0,67036.0,0.02994]
[1722273838467,0.0015542,67038.0,67036.0,0.02994]
[1722273839722,0.0015542,67039.0,67036.0,0.02994]
[1722273839920,0.0015542,67039.0,67038.0,0.10148355]
[1722273840536,0.001,67040.0,67038.0,0.10148355]
[1722273840705,0.0015542,67039.0,67038.0,0.10148355]
[1722273841519,0.02440065,67040.0,67038.0,0.10148355]
[1722273841919,0.03324071,67040.0,67039.0,0.02994]
[1722273842121,0.064,67044.0,67039.0,0.02994]
[1722273842325,0.149164,67040.0,67039.0,0.02994]
[1722273842523,0.149164,67040.0,67030.0,0.04900203]
[1722273842524,0.298334,67039.0,67033.0,0.02994]
[1722273842733,0.149177,67035.0,67033.0,0.02994]
[1722273843046,0.24212295,67034.0,67031.0,0.02994]
[1722273843228,0.23226136,67033.0,67031.0,0.02994]
[1722273843435,0.08463456,67032.0,67031.0,0.02994]
[1722273843877,0.81947995,67032.0,67031.0,0.02994]
[1722273844076,0.149191,67028.0,67022.0,0.02994]
[1722273844395,0.05755208,67027.0,67022.0,0.02994]
[1722273844730,0.05755208,67027.0,67025.0,0.02994]
[1722273844937,0.05755208,67026.0,67025.0,0.02994]
[1722273845135,0.0015542,67029.0,67025.0,0.02994]
[1722273845136,0.05755208,67028.0,67025.0,0.02994]
[1722273845559,0.08095809,67027.0,67025.0,0.02994]
[1722273845779,0.05755208,67026.0,67025.0,0.02994]
[1722273846784,0.05755208,67030.0,67025.0,0.02994]
[1722273846988,0.0015542,67029.0,67025.0,0.02994]
[1722273847192,0.05755208,67028.0,67025.0,0.03394]
[1722273847544,0.05755208,67030.0,67025.0,0.03394]
[1722273847780,0.0015542,67029.0,67025.0,0.03394]
[1722273847983,0.05755208,67028.0,67025.0,0.03394]
[1722273848221,0.05755208,67028.0,67025.0,0.02994]
[1722273848577,0.02340604,67029.0,67025.0,0.02994]
[1722273848832,0.05920448,67028.0,67025.0,0.02994]
[1722273848995,0.0015542,67028.0,67025.0,0.02994]
[1722273849180,0.0015542,67028.0,67025.0,0.03901269]
[1722273850335,0.0015542,67031.0,67025.0,0.03901269]
[1722273850542,0.066,67037.0,67027.0,0.02994]
[1722273850543,0.05765204,67030.0,67027.0,0.02994]
[1722273850703,0.0015542,67036.0,67027.0,0.02994]
[1722273850898,0.0015542,67038.0,67027.0,0.02994]
[1722273851098,0.05766881,67037.0,67027.0,0.02994]
[1722273851303,0.05766881,67037.0,67032.0,0.02994]
[1722273851513,0.0015542,67038.0,67032.0,0.04476809]
[1722273852060,0.0015542,67036.0,67032.0,0.04476809]
[1722273852289,0.05753588,67035.0,67032.0,0.04476809]
[1722273852445,0.0015542,67034.0,67032.0,0.04476809]
[1722273852647,0.05753588,67033.0,67032.0,0.04476809]
[1722273853183,0.02340405,67033.0,67032.0,0.04476809]
[1722273853328,0.1230916,67033.0,67032.0,0.04476809]
[1722273853532,0.09968755,67033.0,67032.0,0.04476809]
[1722273853749,0.24278694,67033.0,67032.0,0.04476809]
[1722273854177,0.24378694,67033.0,67032.0,0.04476809]
[1722273854366,0.24534114,67033.0,67032.0,0.02994]
[1722273854767,0.22648798,67033.0,67032.0,0.02994]
[1722273855346,0.27083939,67033.0,67032.0,0.02994]
[1722273855559,0.05853588,67033.0,67032.0,0.02994]
[1722273855758,0.06009008,67033.0,67032.0,0.02994]
[1722273856194,0.05853588,67033.0,67032.0,0.04476809]
[1722273856795,0.08194005,67033.0,67032.0,0.04476809]
[1722273857794,0.10148021,67033.0,67032.0,0.04476809]
[1722273857939,0.10148021,67033.0,67032.0,0.02994]
[1722273857940,0.12750459,67033.0,67032.0,0.02994]
[1722273858138,0.12905879,67033.0,67032.0,0.02994]
[1722273858357,0.12805879,67033.0,67032.0,0.02994]
[1722273858548,0.85729818,67033.0,67032.0,0.02994]
[1722273858711,0.85729818,67033.0,67032.0,0.03094]
[1722273858712,0.6249046,67033.0,67032.0,0.03094]
[1722273859119,0.64873474,67033.0,67032.0,0.03094]
[1722273859340,0.45595622,67033.0,67032.0,0.03094]
[1722273859535,0.36881385,67033.0,67032.0,0.03094]
[1722273860000,0.45751315,67033.0,67032.0,0.001]
[1722273860538,0.45750163,67033.0,67032.0,0.001]
[1722273860748,0.45594743,67033.0,67032.0,0.001]
[1722273860953,0.4575015,67033.0,67032.0,0.001]
[1722273861134,0.4575015,67033.0,67025.0,0.02994]
[1722273861361,0.0443432,67029.0,67025.0,0.02994]
[1722273861564,0.22821385,67028.0,67026.0,0.02994]
[1722273861690,0.12790346,67027.0,67026.0,0.02994]
[1722273862290,0.41770285,67027.0,67026.0,0.02994]
[1722273862518,0.5271581,67027.0,67026.0,0.02994]
[1722273862922,0.4606433,67027.0,67026.0,0.02994]
[1722273863093,0.67746285,67027.0,67026.0,0.02994]
[1722273863328,0.78832258,67027.0,67026.0,0.02994]
[1722273863499,0.149197,67026.0,67018.0,0.02994]
[1722273863706,0.93751658,67027.0,67018.0,0.02994]
[1722273863707,0.04431731,67023.0,67018.0,0.02994]
[1722273863918,0.04431731,67023.0,67017.0,0.00907239]
[1722273863919,0.22665965,67022.0,67020.0,0.02994]
[1722273864087,0.08356026,67021.0,67020.0,0.02994]
[1722273864286,0.20063527,67021.0,67020.0,0.02994]
[1722273864868,0.23177813,67021.0,67020.0,0.02994]
[1722273865092,0.70140627,67021.0,67020.0,0.02994]
[1722273865295,1.21426396,67021.0,67020.0,0.02994]
[1722273865498,1.21534214,67021.0,67020.0,0.02994]
[1722273865702,1.32613153,67021.0,67020.0,0.02994]
[1722273865873,0.298423,67019.0,67014.0,0.02994]
[1722273866073,0.04429137,67015.0,67014.0,0.02994]
[1722273866277,0.3586199,67015.0,67014.0,0.02994]
[1722273866475,0.149231,67010.0,67009.0,0.000913]
[1722273866675,0.22264441,67010.0,67009.0,0.000913]
[1722273866877,0.28906103,67010.0,67009.0,0.000913]
[1722273867415,0.2669084,67010.0,67009.0,0.000913]
[1722273867632,0.26690799,67010.0,67009.0,0.000913]
[1722273867772,0.22264441,67010.0,67009.0,0.000913]
[1722273868173,0.37665755,67010.0,67009.0,0.000913]
[1722273868370,0.33239409,67010.0,67009.0,0.000913]
[1722273868762,0.22264441,67010.0,67009.0,0.000913]
[1722273869632,0.37187541,67010.0,67009.0,0.000913]
[1722273869841,0.22264441,67010.0,67009.0,0.000913]
[1722273870248,0.37187541,67010.0,67009.0,0.000913]
[1722273870476,0.22264441,67010.0,67009.0,0.000913]
[1722273870681,0.32859374,67010.0,67009.0,0.000913]
[1722273870898,0.47782474,67010.0,67009.0,0.000913]
[1722273871092,0.32859374,67010.0,67009.0,0.000913]
[1722273871293,0.22264441,67010.0,67009.0,0.000913]
[1722273871497,1.01879941,67010.0,67009.0,0.000913]
[1722273871797,1.23021064,67010.0,67009.0,0.000913]
[1722273872029,0.88174864,67010.0,67009.0,0.000913]
[1722273872201,0.94802867,67010.0,67009.0,0.000913]
[1722273872376,1.06902055,67010.0,67009.0,0.000913]
[1722273872578,0.72638603,67010.0,67009.0,0.000913]
[1722273872766,1.06902055,67010.0,67009.0,0.000913]
[1722273872964,1.02484803,67010.0,67009.0,0.000913]
[1722273873166,0.90593234,67010.0,67009.0,0.000913]
[1722273873404,0.10296066,67010.0,67009.0,0.000913]
[1722273873599,0.02341564,67010.0,67009.0,0.000913]
[1722273873802,0.02541564,67010.0,67009.0,0.001913]
[1722273874454,0.02941564,67010.0,67009.0,0.002913]
[1722273874973,0.02741564,67010.0,67009.0,0.001913]
[1722273875175,0.02741564,67010.0,67009.0,0.07345655]
[1722273875375,0.02941564,67010.0,67009.0,0.10439655]
[1722273876083,0.02941564,67010.0,67009.0,0.10339655]
[1722273876284,0.006,67010.0,67009.0,0.10339655]
[1722273876508,0.002,67010.0,67009.0,0.10239655]
[1722273877082,0.006,67010.0,67009.0,0.10339655]
[1722273877754,0.002,67010.0,67009.0,0.10239655]
[1722273878173,0.005,67010.0,67009.0,0.10239655]
[1722273878605,0.005,67010.0,67009.0,0.16309655]
[1722273878884,0.007,67010.0,67009.0,0.001913]
[1722273879257,0.003,67010.0,67009.0,0.000913]
[1722273879625,0.16951098,67010.0,67009.0,0.000913]
[1722273882102,0.16651098,67010.0,67009.0,0.000913]
[1722273883263,0.02341159,67010.0,67009.0,0.000913]
[1722273884426,1.3503,67023.0,67011.0,0.02994]
[1722273884628,0.28539939,67021.0,67014.0,0.02994]
[1722273884831,0.08123573,67020.0,67014.0,0.02994]
[1722273885035,0.28539939,67021.0,67014.0,0.02994]
[1722273885036,0.22433512,67019.0,67014.0,0.02994]
[1722273885178,0.37966373,67018.0,67014.0,0.02994]
[1722273885388,0.14922,67015.0,67014.0,0.02994]
[1722273885669,0.22433512,67015.0,67010.0,0.02994]
[1722273885883,0.05747224,67014.0,67010.0,0.02994]
[1722273887430,0.14309939,67015.0,67010.0,0.02994]
[1722273887632,0.02341243,67014.0,67013.0,0.02994]
[1722273887836,0.02341243,67014.0,67013.0,0.16924]
[1722273888042,0.0797,67028.0,67013.0,0.16924]
[1722273888380,0.20056946,67024.0,67013.0,0.16924]
[1722273888591,0.14309939,67024.0,67013.0,0.16924]
[1722273888774,0.002,67015.0,67013.0,0.16924]
[1722273889073,0.14309939,67024.0,67013.0,0.16924]
[1722273889319,0.14309939,67024.0,67013.0,0.17024]
[1722273889500,0.08457352,67023.0,67013.0,0.17024]
[1722273889657,0.14309939,67022.0,67013.0,0.09334]
[1722273890671,0.0574491,67021.0,67014.0,0.02994]
[1722273890892,0.16896495,67020.0,67014.0,0.02994]
[1722273891077,0.08331466,67019.0,67014.0,0.02994]
[1722273891254,0.22641405,67018.0,67014.0,0.02994]
[1722273891460,0.0574491,67017.0,67014.0,0.02994]
[1722273891659,0.14309939,67016.0,67013.0,0.001]
[1722273892614,0.14309939,67016.0,67011.0,0.02994]
[1722273893018,0.004,67014.0,67011.0,0.02994]
[1722273893450,0.14309939,67013.0,67011.0,0.03871553]
[1722273893660,0.14309939,67013.0,67009.0,0.000913]
[1722273893661,0.02894994,67012.0,67009.0,0.000913]
[1722273893811,0.14309939,67011.0,67009.0,0.000913]
[1722273894635,0.14309939,67011.0,67010.0,0.02994]
[1722273894864,0.20061933,67011.0,67010.0,0.02994]
[1722273895066,0.0642,67018.0,67010.0,0.02994]
[1722273895243,0.04418008,67021.0,67010.0,0.02994]
[1722273895244,0.22613441,67017.0,67010.0,0.02994]
[1722273895448,0.08303502,67016.0,67010.0,0.02994]
[1722273895620,0.22613441,67015.0,67011.0,0.02994]
[1722273895824,0.05751449,67014.0,67011.0,0.02994]
[1722273896065,0.20061388,67014.0,67011.0,0.02994]
[1722273896278,0.14309939,67014.0,67011.0,0.02994]